[Event "Early-Titled-Tuesday-Blitz-September-05-2023"]
[Site "Chess.com"]
[Date "2023.09.05"]
[Round "6"]
[White "McCarthyStone"]
[Black "ZuraTqebuchava"]
[Result "1-0"]
[WhiteElo "2428"]
[BlackElo "2259"]
[TimeControl "180+1"]
[EndTime "9:06:25 PDT"]
[Termination "McCarthyStone won on time"]

1. b3 {[%clk 0:03:00.9]} 1... g6 {[%clk 0:02:54.3]} 2. Bb2 {[%clk 0:03:01.8]}
2... Nf6 {[%clk 0:02:54.7]} 3. Bxf6 {[%clk 0:02:57.4]} 3... exf6 {[%clk
0:02:54]} 4. c4 {[%clk 0:02:58.1]} 4... Bg7 {[%clk 0:02:53.9]} 5. Nc3 {[%clk
0:02:58.7]} 5... f5 {[%clk 0:02:53.9]} 6. g3 {[%clk 0:02:59.6]} 6... O-O {[%clk
0:02:50.7]} 7. Bg2 {[%clk 0:03:00.2]} 7... Nc6 {[%clk 0:02:50.4]} 8. e3 {[%clk
0:03:00.7]} 8... d6 {[%clk 0:02:50]} 9. Nge2 {[%clk 0:03:01]} 9... Be6 {[%clk
0:02:46.7]} 10. d4 {[%clk 0:03:00.9]} 10... Ne7 {[%clk 0:02:38.8]} 11. Bxb7
{[%clk 0:02:54.2]} 11... d5 {[%clk 0:02:22.4]} 12. Bxa8 {[%clk 0:02:41.6]} 12...
Qxa8 {[%clk 0:02:21.8]} 13. c5 {[%clk 0:02:42.3]} 13... Kh8 {[%clk 0:02:11.4]}
14. Nf4 {[%clk 0:02:41.7]} 14... Bd7 {[%clk 0:02:06.9]} 15. Qd3 {[%clk
0:02:29.9]} 15... a5 {[%clk 0:01:57.2]} 16. h4 {[%clk 0:02:24]} 16... h5 {[%clk
0:01:55]} 17. O-O {[%clk 0:02:22.8]} 17... Ng8 {[%clk 0:01:52.4]} 18. Ncxd5
{[%clk 0:01:54]} 18... Bc6 {[%clk 0:01:45.3]} 19. Nc3 {[%clk 0:01:43.6]} 19...
Bf3 {[%clk 0:01:31.6]} 20. d5 {[%clk 0:01:19]} 20... Nf6 {[%clk 0:01:22.1]} 21.
Rac1 {[%clk 0:01:18.8]} 21... Ne4 {[%clk 0:01:15.2]} 22. Nb5 {[%clk 0:00:45.2]}
22... g5 {[%clk 0:00:38.8]} 23. hxg5 {[%clk 0:00:31.2]} 23... Qd8 {[%clk
0:00:35.3]} 24. Nd4 {[%clk 0:00:29]} 24... Bxd4 {[%clk 0:00:26.1]} 25. Qxd4+
{[%clk 0:00:28.2]} 25... Kg8 {[%clk 0:00:23.8]} 26. Qf6 {[%clk 0:00:23.6]} 26...
Nxf6 {[%clk 0:00:22.6]} 27. gxf6 {[%clk 0:00:24.5]} 27... Qxf6 {[%clk
0:00:22.2]} 28. d6 {[%clk 0:00:20.2]} 28... cxd6 {[%clk 0:00:20.1]} 29. cxd6
{[%clk 0:00:21.1]} 29... Qxd6 {[%clk 0:00:19.9]} 30. Rc4 {[%clk 0:00:16.2]}
30... Qf6 {[%clk 0:00:15.3]} 31. Kh2 {[%clk 0:00:13.9]} 31... Kh8 {[%clk
0:00:12.9]} 32. Rc5 {[%clk 0:00:13.1]} 32... Rg8 {[%clk 0:00:11.7]} 33. Rfc1
{[%clk 0:00:13]} 33... Kh7 {[%clk 0:00:10.3]} 34. Rc6 {[%clk 0:00:12.4]} 34...
Qb2 {[%clk 0:00:07.8]} 35. R6c2 {[%clk 0:00:12.2]} 35... Qg7 {[%clk 0:00:06.3]}
36. Rc5 {[%clk 0:00:11.7]} 36... h4 {[%clk 0:00:05.9]} 37. gxh4 {[%clk 0:00:12]}
37... Qg4 {[%clk 0:00:04.3]} 38. Ng6 {[%clk 0:00:02.1]} 38... Rxg6 {[%clk
0:00:03.1]} 39. R5c4 {[%clk 0:00:03]} 39... Qh5 {[%clk 0:00:01.7]} 40. Rf4
{[%clk 0:00:02.8]} 40... Rg4 {[%clk 0:00:01.3]} 41. Rc7 {[%clk 0:00:03.4]} 1-0

[Event "Early-Titled-Tuesday-Blitz-September-05-2023"]
[Site "Chess.com"]
[Date "2023.09.05"]
[Round "6"]
[White "viktorskliarov"]
[Black "Aevengho"]
[Result "1-0"]
[WhiteElo "2663"]
[BlackElo "2532"]
[TimeControl "180+1"]
[EndTime "9:06:27 PDT"]
[Termination "viktorskliarov won on time"]

1. e4 {[%clk 0:02:59.3]} 1... d6 {[%clk 0:02:57.9]} 2. d4 {[%clk 0:02:59.2]}
2... Nf6 {[%clk 0:02:57.1]} 3. Nc3 {[%clk 0:02:59.5]} 3... g6 {[%clk 0:02:56.9]}
4. f3 {[%clk 0:02:59.6]} 4... c6 {[%clk 0:02:56.4]} 5. Be3 {[%clk 0:02:59.7]}
5... b5 {[%clk 0:02:56.6]} 6. Qd2 {[%clk 0:02:59.5]} 6... Nbd7 {[%clk
0:02:56.6]} 7. O-O-O {[%clk 0:02:59.1]} 7... Nb6 {[%clk 0:02:56.7]} 8. b3 {[%clk
0:02:58.6]} 8... a5 {[%clk 0:02:55.3]} 9. g4 {[%clk 0:02:55.3]} 9... a4 {[%clk
0:02:51.2]} 10. Kb1 {[%clk 0:02:52.6]} 10... Qc7 {[%clk 0:02:37.9]} 11. h4
{[%clk 0:02:49.6]} 11... h5 {[%clk 0:02:37.7]} 12. g5 {[%clk 0:02:48]} 12...
Nfd7 {[%clk 0:02:37.7]} 13. f4 {[%clk 0:02:39.8]} 13... Bg7 {[%clk 0:02:30.4]}
14. Nf3 {[%clk 0:02:36.5]} 14... b4 {[%clk 0:02:18.1]} 15. Ne2 {[%clk
0:02:34.6]} 15... c5 {[%clk 0:02:18.4]} 16. Ng3 {[%clk 0:02:23.6]} 16... Bb7
{[%clk 0:01:58.2]} 17. Rh2 {[%clk 0:02:18.6]} 17... O-O {[%clk 0:01:54.1]} 18.
f5 {[%clk 0:02:10]} 18... c4 {[%clk 0:01:14]} 19. f6 {[%clk 0:01:58.4]} 19...
exf6 {[%clk 0:01:12.8]} 20. Qxb4 {[%clk 0:01:57.9]} 20... f5 {[%clk 0:01:08.5]}
21. Nd2 {[%clk 0:01:43.2]} 21... axb3 {[%clk 0:01:04.9]} 22. cxb3 {[%clk
0:01:37.9]} 22... c3 {[%clk 0:00:56.8]} 23. Nc4 {[%clk 0:01:37.9]} 23... fxe4
{[%clk 0:00:41.2]} 24. Qxd6 {[%clk 0:01:13.4]} 24... Rfc8 {[%clk 0:00:28.6]} 25.
Qxc7 {[%clk 0:01:11.4]} 25... Rxc7 {[%clk 0:00:29.5]} 26. Bc1 {[%clk 0:00:36.8]}
26... Nd5 {[%clk 0:00:23.5]} 27. Nxe4 {[%clk 0:00:32.4]} 27... Ba6 {[%clk
0:00:12.4]} 28. Ned6 {[%clk 0:00:24.7]} 28... Rb8 {[%clk 0:00:09.6]} 29. Rc2
{[%clk 0:00:20]} 29... N7b6 {[%clk 0:00:08]} 30. Nxb6 {[%clk 0:00:19.1]} 30...
Rxb6 {[%clk 0:00:08.9]} 31. Bxa6 {[%clk 0:00:18.8]} 31... Rxa6 {[%clk
0:00:09.8]} 32. Nc4 {[%clk 0:00:19]} 32... Re6 {[%clk 0:00:06.8]} 33. a3 {[%clk
0:00:18.5]} 33... Re4 {[%clk 0:00:06.4]} 34. Ka2 {[%clk 0:00:18.8]} 34... Bxd4
{[%clk 0:00:06.1]} 35. Nd6 {[%clk 0:00:16]} 35... Rxh4 {[%clk 0:00:05.9]} 36.
Nb5 {[%clk 0:00:16.3]} 36... Nb4+ {[%clk 0:00:03]} 37. axb4 {[%clk 0:00:15.8]}
37... Rd7 {[%clk 0:00:02.9]} 38. Rxd4 {[%clk 0:00:15.3]} 38... Rdxd4 {[%clk
0:00:03.8]} 39. Nxd4 {[%clk 0:00:15.5]} 39... Rxd4 {[%clk 0:00:04.7]} 40. b5
{[%clk 0:00:15.9]} 40... Rb4 {[%clk 0:00:04.3]} 41. Rxc3 {[%clk 0:00:14.6]}
41... Rxb5 {[%clk 0:00:04.8]} 42. Rc8+ {[%clk 0:00:13.8]} 42... Kh7 {[%clk
0:00:04.6]} 43. Bb2 {[%clk 0:00:14.2]} 43... Ra5+ {[%clk 0:00:04.5]} 44. Kb1
{[%clk 0:00:14.1]} 44... f6 {[%clk 0:00:03.3]} 45. Bxf6 {[%clk 0:00:13.5]} 1-0

[Event "Early-Titled-Tuesday-Blitz-September-05-2023"]
[Site "Chess.com"]
[Date "2023.09.05"]
[Round "6"]
[White "Mesa_1"]
[Black "Roedor"]
[Result "1-0"]
[WhiteElo "2578"]
[BlackElo "2453"]
[TimeControl "180+1"]
[EndTime "9:06:29 PDT"]
[Termination "Mesa_1 won on time"]

1. e4 {[%clk 0:02:58.9]} 1... e5 {[%clk 0:02:56.1]} 2. Nf3 {[%clk 0:02:58.2]}
2... Nc6 {[%clk 0:02:55.9]} 3. Bb5 {[%clk 0:02:58.5]} 3... Nf6 {[%clk
0:02:55.6]} 4. d3 {[%clk 0:02:56.5]} 4... Bc5 {[%clk 0:02:54.9]} 5. Bxc6 {[%clk
0:02:56.4]} 5... dxc6 {[%clk 0:02:55]} 6. Nbd2 {[%clk 0:02:57.1]} 6... Bd6
{[%clk 0:02:53.7]} 7. O-O {[%clk 0:02:50.9]} 7... O-O {[%clk 0:02:51.8]} 8. b3
{[%clk 0:02:51.5]} 8... Nd7 {[%clk 0:02:51.3]} 9. Bb2 {[%clk 0:02:51.4]} 9...
Re8 {[%clk 0:02:51.9]} 10. Re1 {[%clk 0:02:50.8]} 10... Nf8 {[%clk 0:02:51.3]}
11. Nc4 {[%clk 0:02:48.4]} 11... f6 {[%clk 0:02:51.1]} 12. d4 {[%clk 0:02:48.1]}
12... exd4 {[%clk 0:02:44.9]} 13. Qxd4 {[%clk 0:02:41.6]} 13... Bg4 {[%clk
0:02:42.3]} 14. Qe3 {[%clk 0:02:37.5]} 14... Qe7 {[%clk 0:02:39.2]} 15. h3
{[%clk 0:02:35.2]} 15... Be6 {[%clk 0:02:38.5]} 16. Na5 {[%clk 0:02:17.6]} 16...
Reb8 {[%clk 0:02:06.7]} 17. Rad1 {[%clk 0:02:13.6]} 17... Bb4 {[%clk 0:02:01.5]}
18. Bc3 {[%clk 0:02:12.7]} 18... Bf7 {[%clk 0:01:49.4]} 19. Nd4 {[%clk
0:02:02.5]} 19... Bxc3 {[%clk 0:01:38.9]} 20. Qxc3 {[%clk 0:02:03.4]} 20... Ne6
{[%clk 0:01:27.8]} 21. e5 {[%clk 0:01:26.5]} 21... fxe5 {[%clk 0:01:21.3]} 22.
Rxe5 {[%clk 0:01:13.6]} 22... Qf6 {[%clk 0:01:15.5]} 23. Rde1 {[%clk 0:00:59.9]}
23... Nxd4 {[%clk 0:01:02.9]} 24. Qxd4 {[%clk 0:01:00.8]} 24... b6 {[%clk
0:01:03.2]} 25. Nc4 {[%clk 0:00:52.8]} 25... Rd8 {[%clk 0:01:03.2]} 26. Qe4
{[%clk 0:00:49.4]} 26... h6 {[%clk 0:00:53.6]} 27. Rf5 {[%clk 0:00:34.9]} 27...
Qc3 {[%clk 0:00:15.5]} 28. Ne5 {[%clk 0:00:23.6]} 28... Bd5 {[%clk 0:00:15.7]}
29. Qe2 {[%clk 0:00:24.2]} 29... Re8 {[%clk 0:00:14.8]} 30. f4 {[%clk
0:00:24.8]} 30... Rf8 {[%clk 0:00:13.7]} 31. Ng6 {[%clk 0:00:16.9]} 31... Rxf5
{[%clk 0:00:13.6]} 32. Ne7+ {[%clk 0:00:17.7]} 32... Kh7 {[%clk 0:00:12.9]} 33.
Nxf5 {[%clk 0:00:18.6]} 33... Rf8 {[%clk 0:00:11.3]} 34. g4 {[%clk 0:00:12.7]}
34... g6 {[%clk 0:00:10.3]} 35. Ne3 {[%clk 0:00:12.4]} 35... Qc5 {[%clk
0:00:06.3]} 36. Qf2 {[%clk 0:00:10.9]} 36... Re8 {[%clk 0:00:05]} 37. c4 {[%clk
0:00:10.8]} 37... Bf7 {[%clk 0:00:02.1]} 38. Kf1 {[%clk 0:00:08.2]} 38... Kg7
{[%clk 0:00:02.1]} 39. f5 {[%clk 0:00:08.4]} 39... Re5 {[%clk 0:00:01.5]} 40. h4
{[%clk 0:00:06.9]} 40... gxf5 {[%clk 0:00:01.6]} 41. Nxf5+ {[%clk 0:00:07.8]}
1-0

[Event "Early-Titled-Tuesday-Blitz-September-05-2023"]
[Site "Chess.com"]
[Date "2023.09.05"]
[Round "6"]
[White "NFChess13"]
[Black "PetrolulSah"]
[Result "0-1"]
[WhiteElo "2644"]
[BlackElo "2150"]
[TimeControl "180+1"]
[EndTime "9:06:32 PDT"]
[Termination "PetrolulSah won on time"]

1. c4 {[%clk 0:03:00.9]} 1... Nf6 {[%clk 0:02:59.1]} 2. Nc3 {[%clk 0:02:58.8]}
2... d5 {[%clk 0:02:55.9]} 3. cxd5 {[%clk 0:02:55.3]} 3... Nxd5 {[%clk
0:02:56.8]} 4. e4 {[%clk 0:02:55.5]} 4... Nb6 {[%clk 0:02:54.5]} 5. d4 {[%clk
0:02:54.3]} 5... g6 {[%clk 0:02:54.9]} 6. h4 {[%clk 0:02:53.2]} 6... h5 {[%clk
0:02:53.4]} 7. Be3 {[%clk 0:02:44.2]} 7... Bg7 {[%clk 0:02:52.2]} 8. Nh3 {[%clk
0:02:42.6]} 8... Nc6 {[%clk 0:02:51.8]} 9. Bb5 {[%clk 0:02:39.3]} 9... a6 {[%clk
0:02:45.9]} 10. Bxc6+ {[%clk 0:02:35.6]} 10... bxc6 {[%clk 0:02:46.8]} 11. Ng5
{[%clk 0:02:34.7]} 11... c5 {[%clk 0:02:33.9]} 12. Qb3 {[%clk 0:02:19.1]} 12...
c4 {[%clk 0:02:19.9]} 13. Qd1 {[%clk 0:02:09.7]} 13... Bb7 {[%clk 0:02:16.8]}
14. O-O {[%clk 0:02:05.4]} 14... O-O {[%clk 0:02:15.5]} 15. Qd2 {[%clk 0:01:52]}
15... Qd7 {[%clk 0:02:14.1]} 16. Rfd1 {[%clk 0:01:51.1]} 16... Qg4 {[%clk
0:02:08.3]} 17. f3 {[%clk 0:01:43.5]} 17... Qd7 {[%clk 0:01:52.4]} 18. Qe2
{[%clk 0:01:42.1]} 18... Bh6 {[%clk 0:01:52.1]} 19. Rac1 {[%clk 0:01:38.2]}
19... Rad8 {[%clk 0:01:51.1]} 20. d5 {[%clk 0:01:32.8]} 20... a5 {[%clk
0:01:42]} 21. Rd2 {[%clk 0:01:17.1]} 21... Ba6 {[%clk 0:01:39]} 22. e5 {[%clk
0:01:14.5]} 22... Qf5 {[%clk 0:01:34.7]} 23. Bc5 {[%clk 0:01:03.4]} 23... Bxg5
{[%clk 0:01:25]} 24. hxg5 {[%clk 0:01:03]} 24... Qxg5 {[%clk 0:01:25.4]} 25. Ne4
{[%clk 0:01:02.9]} 25... Qxe5 {[%clk 0:01:19.8]} 26. Bd4 {[%clk 0:01:02.1]}
26... Qf5 {[%clk 0:01:18.1]} 27. Ng3 {[%clk 0:00:59.7]} 27... Qg5 {[%clk
0:01:13.9]} 28. Ne4 {[%clk 0:00:51.7]} 28... Qf5 {[%clk 0:01:12.1]} 29. Ng3
{[%clk 0:00:51.4]} 29... Qd7 {[%clk 0:01:12]} 30. Qe5 {[%clk 0:00:46.2]} 30...
f6 {[%clk 0:01:09.7]} 31. Qe4 {[%clk 0:00:46.4]} 31... Kg7 {[%clk 0:01:05.9]}
32. Rcd1 {[%clk 0:00:21.6]} 32... Bb7 {[%clk 0:01:05.5]} 33. Bxb6 {[%clk
0:00:21.9]} 33... cxb6 {[%clk 0:01:02]} 34. Qxc4 {[%clk 0:00:22.2]} 34... Rc8
{[%clk 0:00:49.1]} 35. Qe4 {[%clk 0:00:21]} 35... Qd6 {[%clk 0:00:39.8]} 36. Ne2
{[%clk 0:00:21.1]} 36... e5 {[%clk 0:00:30.5]} 37. dxe6 {[%clk 0:00:16.7]} 37...
Qc5+ {[%clk 0:00:29.9]} 38. Qd4 {[%clk 0:00:16]} 38... Qxd4+ {[%clk 0:00:16.1]}
39. Rxd4 {[%clk 0:00:16.9]} 39... Rc2 {[%clk 0:00:15.5]} 40. Rd7+ {[%clk
0:00:17.4]} 40... Kh6 {[%clk 0:00:15.2]} 41. Nf4 {[%clk 0:00:12]} 41... Bc6
{[%clk 0:00:12.4]} 42. Rc7 {[%clk 0:00:10.6]} 42... Re8 {[%clk 0:00:10.3]} 43.
Rd6 {[%clk 0:00:08]} 43... Be4 {[%clk 0:00:06.2]} 44. Rf7 {[%clk 0:00:04.2]}
44... Bf5 {[%clk 0:00:04.6]} 45. Rxf6 {[%clk 0:00:01.5]} 45... Rc1+ {[%clk
0:00:04.3]} 0-1

[Event "Early-Titled-Tuesday-Blitz-September-05-2023"]
[Site "Chess.com"]
[Date "2023.09.05"]
[Round "6"]
[White "rachidhuilda"]
[Black "InadaC"]
[Result "0-1"]
[WhiteElo "2299"]
[BlackElo "1737"]
[TimeControl "180+1"]
[EndTime "9:06:32 PDT"]
[Termination "InadaC won by resignation"]

1. d4 {[%clk 0:03:00.9]} 1... Nf6 {[%clk 0:02:59.4]} 2. Bg5 {[%clk 0:03:00.8]}
2... e6 {[%clk 0:02:59]} 3. e4 {[%clk 0:02:59.7]} 3... d5 {[%clk 0:02:57.8]} 4.
Nd2 {[%clk 0:02:54.6]} 4... c5 {[%clk 0:02:52]} 5. exd5 {[%clk 0:02:48]} 5...
exd5 {[%clk 0:02:48.3]} 6. Ngf3 {[%clk 0:02:44.6]} 6... Be6 {[%clk 0:02:48.1]}
7. Bb5+ {[%clk 0:02:42.3]} 7... Nbd7 {[%clk 0:02:46.7]} 8. O-O {[%clk
0:02:41.5]} 8... Be7 {[%clk 0:02:46.8]} 9. Re1 {[%clk 0:02:38.7]} 9... O-O
{[%clk 0:02:47.1]} 10. c3 {[%clk 0:02:37.6]} 10... Bg4 {[%clk 0:02:42.5]} 11. h3
{[%clk 0:02:34.8]} 11... Bh5 {[%clk 0:02:41.7]} 12. Bd3 {[%clk 0:02:31.9]} 12...
c4 {[%clk 0:02:40]} 13. Bc2 {[%clk 0:02:29.6]} 13... Bd6 {[%clk 0:02:40.4]} 14.
Nf1 {[%clk 0:02:27.3]} 14... Qc7 {[%clk 0:02:39.5]} 15. Ne3 {[%clk 0:02:11.1]}
15... Rfe8 {[%clk 0:02:37.1]} 16. Nf5 {[%clk 0:02:07.7]} 16... Bg6 {[%clk
0:02:32.7]} 17. Nxd6 {[%clk 0:02:04.4]} 17... Qxd6 {[%clk 0:02:32.5]} 18. Bxg6
{[%clk 0:01:55.4]} 18... hxg6 {[%clk 0:02:32.1]} 19. Qd2 {[%clk 0:01:50.6]}
19... Ne4 {[%clk 0:02:29.3]} 20. Qf4 {[%clk 0:01:50.7]} 20... Qxf4 {[%clk
0:02:28.6]} 21. Bxf4 {[%clk 0:01:50.5]} 21... Ndf6 {[%clk 0:02:27.7]} 22. Re2
{[%clk 0:01:46.8]} 22... Nh5 {[%clk 0:02:27.7]} 23. Bh2 {[%clk 0:01:39.2]} 23...
f5 {[%clk 0:02:26.2]} 24. Rae1 {[%clk 0:01:38.8]} 24... Kh7 {[%clk 0:02:24.5]}
25. Nd2 {[%clk 0:01:17.1]} 25... Rf8 {[%clk 0:02:15.6]} 26. Nf3 {[%clk 0:01:17]}
26... Nhf6 {[%clk 0:02:15.1]} 27. Ne5 {[%clk 0:01:16.3]} 27... g5 {[%clk
0:02:10.8]} 28. f3 {[%clk 0:01:16]} 28... Nd6 {[%clk 0:02:09.1]} 29. Nd7 {[%clk
0:01:07.6]} 29... Nxd7 {[%clk 0:01:50.3]} 30. Bxd6 {[%clk 0:01:07.6]} 30... Rf6
{[%clk 0:01:25]} 31. Ba3 {[%clk 0:01:02.7]} 31... b6 {[%clk 0:01:17.3]} 32. Re7
{[%clk 0:01:02.4]} 32... Rd8 {[%clk 0:01:12]} 33. Kf2 {[%clk 0:00:57]} 33... Kg6
{[%clk 0:01:11.5]} 34. R1e2 {[%clk 0:00:55.4]} 34... b5 {[%clk 0:01:09.9]} 35.
Bb4 {[%clk 0:00:45.9]} 35... a6 {[%clk 0:01:08.9]} 36. R2e6 {[%clk 0:00:43.6]}
36... Nb8 {[%clk 0:00:59.5]} 37. Rxf6+ {[%clk 0:00:42.4]} 37... gxf6 {[%clk
0:00:55.3]} 38. Rb7 {[%clk 0:00:41]} 38... Nc6 {[%clk 0:00:52.9]} 39. Bc5 {[%clk
0:00:39.6]} 39... Ra8 {[%clk 0:00:50.5]} 40. Rb6 {[%clk 0:00:39.5]} 40... Nd8
{[%clk 0:00:49.1]} 41. Be7 {[%clk 0:00:39.3]} 41... Nf7 {[%clk 0:00:39.7]} 42.
Rxf6+ {[%clk 0:00:38.2]} 42... Kg7 {[%clk 0:00:39.1]} 43. Rb6 {[%clk 0:00:38.5]}
43... Ra7 {[%clk 0:00:33.2]} 44. Bc5 {[%clk 0:00:37.7]} 44... Ra8 {[%clk
0:00:32.4]} 45. Re6 {[%clk 0:00:35.7]} 45... a5 {[%clk 0:00:30.1]} 46. Rb6
{[%clk 0:00:35.9]} 46... b4 {[%clk 0:00:28.7]} 47. Rb7 {[%clk 0:00:35.2]} 47...
bxc3 {[%clk 0:00:27.7]} 48. bxc3 {[%clk 0:00:34.9]} 48... a4 {[%clk 0:00:26.5]}
49. Rb5 {[%clk 0:00:34.1]} 49... Kf6 {[%clk 0:00:23.6]} 50. Bb4 {[%clk
0:00:34.2]} 50... Ke6 {[%clk 0:00:22.7]} 51. Rb6+ {[%clk 0:00:34]} 51... Kd7
{[%clk 0:00:21.8]} 52. a3 {[%clk 0:00:34.4]} 52... Nd8 {[%clk 0:00:19.4]} 53.
Rg6 {[%clk 0:00:34.4]} 53... Ne6 {[%clk 0:00:19.6]} 54. Rf6 {[%clk 0:00:33.9]}
54... f4 {[%clk 0:00:19.5]} 55. Rf7+ {[%clk 0:00:33.7]} 55... Kc6 {[%clk
0:00:19.6]} 56. Re7 {[%clk 0:00:34.2]} 56... Nc7 {[%clk 0:00:19.9]} 57. Re5
{[%clk 0:00:34.2]} 57... Rg8 {[%clk 0:00:19.4]} 58. Rf5 {[%clk 0:00:33.6]} 58...
Kd7 {[%clk 0:00:19.9]} 59. Rf6 {[%clk 0:00:33.8]} 59... Ne6 {[%clk 0:00:20.1]}
60. Rf7+ {[%clk 0:00:33.5]} 60... Kc6 {[%clk 0:00:20.1]} 61. Ra7 {[%clk
0:00:33.9]} 61... Nc7 {[%clk 0:00:19.8]} 62. Rxa4 {[%clk 0:00:33.4]} 62... Re8
{[%clk 0:00:19.9]} 63. Ra6+ {[%clk 0:00:33]} 63... Nxa6 {[%clk 0:00:19.2]} 64.
h4 {[%clk 0:00:31.1]} 64... gxh4 {[%clk 0:00:18.9]} 65. Kg1 {[%clk 0:00:31.4]}
65... Nxb4 {[%clk 0:00:18.7]} 66. axb4 {[%clk 0:00:31.7]} 66... Kb5 {[%clk
0:00:19.2]} 67. Kf2 {[%clk 0:00:31.5]} 67... Re3 {[%clk 0:00:19.9]} 0-1

[Event "Early-Titled-Tuesday-Blitz-September-05-2023"]
[Site "Chess.com"]
[Date "2023.09.05"]
[Round "6"]
[White "FGHSMN"]
[Black "Sibelephant"]
[Result "0-1"]
[WhiteElo "2930"]
[BlackElo "3142"]
[TimeControl "180+1"]
[EndTime "9:06:33 PDT"]
[Termination "Sibelephant won on time"]

1. b3 {[%clk 0:02:30.1]} 1... d5 {[%clk 0:02:52.7]} 2. Bb2 {[%clk 0:02:30.4]}
2... Bg4 {[%clk 0:02:52.4]} 3. f3 {[%clk 0:02:30.6]} 3... Bh5 {[%clk 0:02:48.4]}
4. h4 {[%clk 0:02:30.5]} 4... Qd6 {[%clk 0:02:47.5]} 5. d4 {[%clk 0:02:30.4]}
5... f6 {[%clk 0:02:42.5]} 6. e3 {[%clk 0:02:28.4]} 6... Nc6 {[%clk 0:02:34.9]}
7. Nh3 {[%clk 0:02:25.4]} 7... e5 {[%clk 0:02:33.4]} 8. Kf2 {[%clk 0:02:24.6]}
8... O-O-O {[%clk 0:02:31.7]} 9. Nc3 {[%clk 0:02:23.8]} 9... exd4 {[%clk
0:02:28.2]} 10. exd4 {[%clk 0:02:23.2]} 10... Nge7 {[%clk 0:02:25.1]} 11. Ne2
{[%clk 0:02:18]} 11... Bf7 {[%clk 0:01:51.6]} 12. Qd2 {[%clk 0:02:09.3]} 12...
Nf5 {[%clk 0:01:43.1]} 13. g3 {[%clk 0:02:00.1]} 13... Re8 {[%clk 0:01:39.9]}
14. Re1 {[%clk 0:01:54.4]} 14... Rxe2+ {[%clk 0:01:31.5]} 15. Bxe2 {[%clk
0:01:52.3]} 15... Qxg3+ {[%clk 0:01:30.7]} 16. Kf1 {[%clk 0:01:52.8]} 16... Nxh4
{[%clk 0:00:55.6]} 17. Bd1 {[%clk 0:01:48.4]} 17... Nxf3 {[%clk 0:00:52]} 18.
Bxf3 {[%clk 0:01:44.8]} 18... Qxf3+ {[%clk 0:00:51.9]} 19. Kg1 {[%clk
0:01:45.6]} 19... Bb4 {[%clk 0:00:43.9]} 20. c3 {[%clk 0:01:42.4]} 20... Qg3+
{[%clk 0:00:42]} 21. Kf1 {[%clk 0:01:41.5]} 21... Bd6 {[%clk 0:00:41.9]} 22. Re3
{[%clk 0:01:33.4]} 22... Qg6 {[%clk 0:00:38.8]} 23. Rg1 {[%clk 0:01:24.9]} 23...
Qf5+ {[%clk 0:00:35.1]} 24. Kg2 {[%clk 0:01:14.5]} 24... Bg6 {[%clk 0:00:30.7]}
25. Qe2 {[%clk 0:00:43.5]} 25... Qd7 {[%clk 0:00:27.6]} 26. Nf2 {[%clk
0:00:40.9]} 26... Bf4 {[%clk 0:00:24.7]} 27. Rh3 {[%clk 0:00:37.3]} 27... Re8
{[%clk 0:00:24.6]} 28. Qg4 {[%clk 0:00:20.4]} 28... Bf5 {[%clk 0:00:22.7]} 29.
Qxf4 {[%clk 0:00:20.4]} 29... Bxh3+ {[%clk 0:00:22.9]} 30. Nxh3 {[%clk
0:00:21.3]} 30... Re2+ {[%clk 0:00:23.5]} 31. Nf2 {[%clk 0:00:18.6]} 31... Rxb2
{[%clk 0:00:23.6]} 32. Re1 {[%clk 0:00:16.8]} 32... b6 {[%clk 0:00:17.7]} 33.
Kg3 {[%clk 0:00:11.1]} 33... Rxa2 {[%clk 0:00:15.7]} 34. Qh4 {[%clk 0:00:09.5]}
34... Qf5 {[%clk 0:00:14.4]} 35. Kg2 {[%clk 0:00:08.6]} 35... Kb7 {[%clk
0:00:13.4]} 36. Re3 {[%clk 0:00:09]} 36... g5 {[%clk 0:00:11.8]} 37. Qg3 {[%clk
0:00:08.9]} 37... h5 {[%clk 0:00:11.9]} 38. Rf3 {[%clk 0:00:09.2]} 38... Qe4
{[%clk 0:00:10.9]} 39. Kh2 {[%clk 0:00:07.7]} 39... h4 {[%clk 0:00:10.7]} 40.
Qg2 {[%clk 0:00:07.1]} 40... g4 {[%clk 0:00:08.8]} 41. Rxf6 {[%clk 0:00:01.2]}
41... g3+ {[%clk 0:00:08.2]} 0-1

[Event "Early-Titled-Tuesday-Blitz-September-05-2023"]
[Site "Chess.com"]
[Date "2023.09.05"]
[Round "6"]
[White "Sadykov_Ramil"]
[Black "secretsuperstar7"]
[Result "1-0"]
[WhiteElo "2584"]
[BlackElo "2396"]
[TimeControl "180+1"]
[EndTime "9:06:33 PDT"]
[Termination "Sadykov_Ramil won on time"]

1. Nf3 {[%clk 0:03:00.9]} 1... d5 {[%clk 0:02:58.3]} 2. c4 {[%clk 0:03:00.1]}
2... c6 {[%clk 0:02:48.8]} 3. e3 {[%clk 0:02:57]} 3... Nf6 {[%clk 0:02:45.2]} 4.
b3 {[%clk 0:02:52.9]} 4... e6 {[%clk 0:02:43.1]} 5. Bb2 {[%clk 0:02:52.9]} 5...
Be7 {[%clk 0:02:40.4]} 6. g4 {[%clk 0:02:47.9]} 6... O-O {[%clk 0:02:35.6]} 7.
g5 {[%clk 0:02:37.5]} 7... Ne4 {[%clk 0:02:34.7]} 8. h4 {[%clk 0:02:37.3]} 8...
Nd7 {[%clk 0:02:28.2]} 9. d3 {[%clk 0:02:33.6]} 9... Nec5 {[%clk 0:02:25.7]} 10.
b4 {[%clk 0:02:22]} 10... Na6 {[%clk 0:02:24.1]} 11. a3 {[%clk 0:02:22]} 11...
Qb6 {[%clk 0:02:19.6]} 12. Qc2 {[%clk 0:02:16.5]} 12... c5 {[%clk 0:01:58.6]}
13. b5 {[%clk 0:02:12.1]} 13... Nc7 {[%clk 0:01:56.2]} 14. a4 {[%clk 0:02:07.5]}
14... Qd6 {[%clk 0:01:52.9]} 15. Rg1 {[%clk 0:02:01.6]} 15... e5 {[%clk
0:01:52.2]} 16. Nbd2 {[%clk 0:01:54.1]} 16... f5 {[%clk 0:01:44.1]} 17. gxf6
{[%clk 0:01:46.3]} 17... Bxf6 {[%clk 0:01:43.9]} 18. cxd5 {[%clk 0:01:41.9]}
18... Nxd5 {[%clk 0:01:42.8]} 19. Ne4 {[%clk 0:01:37]} 19... Qe6 {[%clk
0:01:00.8]} 20. Qb3 {[%clk 0:01:20.2]} 20... Nc7 {[%clk 0:00:45]} 21. Qxe6+
{[%clk 0:01:13.1]} 21... Nxe6 {[%clk 0:00:45.9]} 22. Bh3 {[%clk 0:01:09.9]}
22... Nc7 {[%clk 0:00:31]} 23. Bxd7 {[%clk 0:01:05.1]} 23... Bxd7 {[%clk
0:00:30.8]} 24. Nxc5 {[%clk 0:01:06]} 24... Bc8 {[%clk 0:00:22.1]} 25. Bxe5
{[%clk 0:01:05.6]} 25... Nd5 {[%clk 0:00:17.6]} 26. d4 {[%clk 0:00:56.3]} 26...
b6 {[%clk 0:00:14.8]} 27. Ne4 {[%clk 0:00:54.4]} 27... Bf5 {[%clk 0:00:11.5]}
28. Nxf6+ {[%clk 0:00:48.7]} 28... Nxf6 {[%clk 0:00:11.7]} 29. Bxf6 {[%clk
0:00:47.4]} 29... Rxf6 {[%clk 0:00:12.6]} 30. Rc1 {[%clk 0:00:45.5]} 30... Be4
{[%clk 0:00:12.6]} 31. Ne5 {[%clk 0:00:45.4]} 31... Rh6 {[%clk 0:00:07.8]} 32.
Rc7 {[%clk 0:00:44.4]} 32... g6 {[%clk 0:00:05.8]} 33. f3 {[%clk 0:00:44.5]}
33... Bd5 {[%clk 0:00:04.7]} 34. e4 {[%clk 0:00:43.5]} 34... Bb3 {[%clk
0:00:03.8]} 35. d5 {[%clk 0:00:22.3]} 35... Bxa4 {[%clk 0:00:02.8]} 36. d6
{[%clk 0:00:16.9]} 36... Bxb5 {[%clk 0:00:02.5]} 37. d7 {[%clk 0:00:14.5]} 37...
Ba6 {[%clk 0:00:01.5]} 38. Nc6 {[%clk 0:00:07.8]} 38... Kf8 {[%clk 0:00:01.1]}
39. d8=Q+ {[%clk 0:00:07.6]} 39... Rxd8 {[%clk 0:00:01.3]} 40. Nxd8 {[%clk
0:00:08.5]} 40... Rxh4 {[%clk 0:00:01.6]} 41. Rxa7 {[%clk 0:00:08.5]} 41... Bc4
{[%clk 0:00:01]} 42. Rc7 {[%clk 0:00:06.9]} 42... Rh2 {[%clk 0:00:01.6]} 43.
Rxc4 {[%clk 0:00:06.4]} 1-0